fUSD/lending_fUSD_20250322
["ID","MTS","AMOUNT","RATE_DAILY","PERIOD"]
[356546667,1742637105178,-500.0,0.0005041,120]
[356546668,1742637105187,-1473.31,0.0005041,120]
[356546669,1742637105197,-751.46,0.0005041,120]
[356546670,1742637105207,-1642.39,0.0005041,120]
[356546671,1742637105216,-654.04,0.0005041,120]
[356546672,1742637105225,-674.52,0.0005041,120]
[356546673,1742637105235,-520.54,0.0005041,120]
[356546674,1742637105245,-500.0,0.0005041,120]
[356546675,1742637105254,-781.34,0.0005041,120]
[356546676,1742637105264,-500.0,0.0005041,120]
[356546677,1742637105274,-532.16,0.0005041,120]
[356546678,1742637105283,-500.0,0.0005041,120]
[356546679,1742637105293,-500.0,0.0005041,120]
[356546680,1742637105303,-601.78,0.0005041,120]
[356546681,1742637105313,-691.76,0.0005041,120]
[356546682,1742637105323,-802.29,0.0005041,120]
[356546683,1742637105332,-500.0,0.0005041,120]
[356546684,1742637105343,-580.53,0.0005041,120]
[356546685,1742637105354,-2210.41,0.0005041,120]
[356546686,1742637105363,-904.56,0.0005041,120]
[356546687,1742637105373,-500.0,0.0005041,120]
[356546688,1742637105383,-793.91,0.0005041,120]
[356546689,1742637105393,-706.55,0.0005041,120]
[356546690,1742637105402,-834.3,0.0005041,120]
[356546691,1742637105412,-671.78,0.0005041,120]
[356546692,1742637105421,-500.0,0.0005041,120]
[356546693,1742637105431,-1807.75,0.0005041,120]
[356546694,1742637105441,-500.0,0.0005041,120]
[356546695,1742637105450,-842.88,0.0005041,120]
[356546696,1742637105460,-500.0,0.0005041,120]
[356546697,1742637105469,-500.0,0.0005041,120]
[356546698,1742637105480,-350.0,0.0005041,120]
[356546699,1742637105490,-965.16,0.0005041,120]
[356546700,1742637105500,-591.6,0.0005041,120]
[356546701,1742637105509,-1371.05,0.0005041,120]
[356546702,1742637105519,-1325.26,0.0005041,120]
[356546703,1742637105528,-558.56,0.0005041,120]
[356546704,1742637105537,-874.61,0.0005041,120]
[356546705,1742637105547,-902.88,0.0005041,120]
[356546706,1742637105556,-509.55,0.0005041,120]
[356546707,1742637105565,-441.65524568,0.0005041,120]
[356546708,1742637105575,-500.0,0.0005041,120]
[356546709,1742637105585,-937.33,0.0005041,120]
[356546710,1742637105594,-500.0,0.0005041,120]
[356546711,1742637105603,-1062.3,0.0005041,120]
[356546712,1742637105613,-600.78,0.0005041,120]
[356546713,1742637105622,-664.64,0.0005041,120]
[356546714,1742637105632,-668.71,0.0005041,120]
[356546715,1742637105641,-564.64,0.0005041,120]
[356546716,1742637105650,-1070.64,0.0005041,120]
[356546717,1742637105659,-979.48,0.0005041,120]
[356546718,1742637105669,-500.0,0.0005041,120]
[356546719,1742637105679,-800.83,0.0005041,120]
[356546720,1742637105688,-500.0,0.0005041,120]
[356546721,1742637105698,-698.39,0.0005041,120]
[356546722,1742637105708,-461.3,0.0005041,120]
[356546723,1742637105717,-680.79,0.0005041,120]
[356546724,1742637105727,-514.68,0.0005041,120]
[356546725,1742637105737,-536.4,0.0005041,120]
[356546726,1742637105747,-500.0,0.0005041,120]
[356546727,1742637105756,-500.0,0.0005041,120]
[356546728,1742637105766,-500.0,0.0005041,120]
[356546729,1742637105775,-500.0,0.0005041,120]
[356546730,1742637105784,-661.88,0.0005041,120]
[356546731,1742637105794,-500.0,0.0005041,120]
[356546732,1742637105804,-500.0,0.0005041,120]
[356546733,1742637105813,-500.0,0.0005041,120]
[356546734,1742637105822,-730.9,0.0005041,120]
[356546735,1742637105832,-1058.49,0.0005041,120]
[356546736,1742637105841,-500.0,0.0005041,120]
[356546737,1742637105850,-1233.22,0.0005041,120]
[356546738,1742637105859,-1327.63,0.0005041,120]
[356546739,1742637105869,-520.32,0.0005041,120]
[356546740,1742637105878,-896.4,0.0005041,120]
[356546741,1742637105887,-1347.94,0.0005041,120]
[356546742,1742637105896,-597.81,0.0005041,120]
[356546743,1742637105905,-788.73,0.0005041,120]
[356546744,1742637105914,-500.0,0.0005041,120]
[356546745,1742637105923,-500.0,0.0005041,120]
[356546746,1742637105932,-2023.49,0.0005041,120]
[356546747,1742637105943,-625.69,0.0005041,120]
[356546748,1742637105952,-1415.42,0.0005041,120]
[356546749,1742637105961,-556.5,0.0005041,120]
[356546750,1742637105970,-839.81,0.0005041,120]
[356546751,1742637105979,-813.54,0.0005041,120]
[356546752,1742637105988,-570.18,0.0005041,120]
[356546753,1742637105997,-611.01177821,0.0005041,120]
[356546754,1742637106007,-565.41113069,0.0005041,120]
[356546755,1742637106016,-500.0,0.0005041,120]
[356546756,1742637106025,-621.41,0.0005041,120]
[356546757,1742637106034,-300.0,0.0005041,120]
[356546758,1742637106043,-713.81,0.0005041,120]
[356546759,1742637106052,-500.0,0.0005041,120]
[356546760,1742637106061,-500.0,0.0005041,120]
[356546761,1742637106071,-1159.44,0.0005041,10]
[356546762,1742637106079,-639.03,0.0005041,120]
[356546763,1742637106089,-500.0,0.0005041,120]
[356546764,1742637106097,-521.66,0.0005041,120]
[356546765,1742637106107,-1837.38,0.0005041,120]
[356546766,1742637106116,-500.0,0.0005041,120]
[356546767,1742637106125,-500.0,0.0005041,120]
[356546768,1742637106135,-500.0,0.0005041,120]
[356546769,1742637106144,-500.0,0.0005041,120]
[356546770,1742637106153,-872.68,0.0005041,120]
[356546771,1742637106163,-500.0,0.0005041,120]
[356546772,1742637106173,-815.59,0.0005041,120]
[356546773,1742637106182,-500.0,0.0005041,120]
[356546774,1742637106192,-564.59,0.0005041,120]
[356546775,1742637106202,-500.0,0.0005041,120]
[356546776,1742637106211,-629.6,0.0005041,120]
[356546777,1742637106221,-500.0,0.0005041,120]
[356546778,1742637106230,-1219.87,0.0005041,120]
[356546779,1742637106239,-511.1,0.0005041,120]
[356546780,1742637106249,-500.0,0.0005041,120]
[356546781,1742637106259,-500.0,0.0005041,120]
[356546782,1742637106268,-973.06,0.0005041,120]
[356546783,1742637106278,-500.0,0.0005041,120]
[356546784,1742637106287,-624.39,0.0005041,120]
[356546785,1742637106296,-500.0,0.0005041,120]
[356546786,1742637106305,-1923.34,0.0005041,120]
[356546787,1742637106315,-820.19,0.0005041,120]
[356546788,1742637106325,-665.21,0.0005041,120]
[356546789,1742637106335,-564.23,0.0005041,120]
[356546790,1742637106346,-500.0,0.0005041,120]
[356546791,1742637106355,-500.0,0.0005041,120]
[356546792,1742637106364,-1241.85,0.0005041,120]
[356546793,1742637106374,-500.0,0.0005041,120]
[356546794,1742637106383,-619.76,0.0005041,120]
[356546795,1742637106392,-500.0,0.0005041,120]
[356546796,1742637106401,-591.13,0.0005041,120]
[356546797,1742637106411,-500.0,0.0005041,120]
[356546798,1742637106421,-611.96,0.0005041,120]
[356546799,1742637106430,-500.0,0.0005041,120]
[356546800,1742637106439,-645.8,0.0005041,120]
[356546801,1742637106449,-529.2,0.0005041,120]
[356546802,1742637106459,-500.0,0.0005041,120]
[356546803,1742637106468,-601.81,0.0005041,120]
[356546804,1742637106477,-641.64,0.0005041,120]
[356546805,1742637106488,-500.0,0.0005041,120]
[356546806,1742637106497,-640.55,0.0005041,120]
[356546807,1742637106506,-627.71,0.0005041,120]
[356546808,1742637106517,-701.19,0.0005041,120]
[356546809,1742637106526,-1353.99,0.0005041,120]
[356546810,1742637106536,-500.0,0.0005041,120]
[356546811,1742637106548,-260.6,0.0005041,120]
[356546812,1742637106557,-658.79,0.0005041,120]
[356546813,1742637106568,-1518.81,0.0005041,120]
[356546814,1742637106578,-1579.16,0.0005041,120]
[356546815,1742637106590,-842.72,0.0005041,120]
[356546816,1742637106599,-500.0,0.0005041,120]
[356546817,1742637106609,-1920.4,0.0005041,120]
[356546818,1742637106619,-500.0,0.0005041,120]
[356546819,1742637106630,-5245.81,0.0005041,120]
[356546820,1742637106639,-499.90079309,0.0005041,120]
[356546821,1742637106649,-2131.02,0.0005041,120]
[356546822,1742637106659,-983.72,0.0005041,120]
[356546823,1742637106668,-585.87,0.0005041,120]
[356546824,1742637106677,-1445.99,0.0005041,120]
[356546825,1742637106685,-689.75,0.0005041,120]
[356546826,1742637106694,-500.0,0.0005041,120]
[356546827,1742637106703,-846.6,0.0005041,120]
[356546828,1742637106713,-635.78,0.0005041,120]
[356546829,1742637106722,-587.36,0.0005041,120]
[356546830,1742637106731,-1413.44,0.0005041,120]
[356546831,1742637106740,-4235.9,0.0005041,2]
[356546832,1742637106918,-500.0,0.0005041,120]
[356546833,1742637106927,-500.0,0.0005041,120]
[356546834,1742637106936,-1454.51,0.0005041,120]
[356546835,1742637106946,-500.0,0.0005041,120]
[356546836,1742637106955,-500.0,0.0005041,120]
[356546837,1742637106964,-500.0,0.0005041,120]
[356546838,1742637106973,-970.54,0.0005041,120]
[356546839,1742637106983,-586.12,0.0005041,120]
[356546840,1742637106992,-635.48,0.0005041,120]
[356546841,1742637107001,-647.73,0.0005041,120]
[356546842,1742637107011,-1824.31,0.0005041,120]
[356546843,1742637107020,-996.39,0.0005041,120]
[356546844,1742637107031,-500.0,0.0005041,120]
[356546845,1742637107040,-833.59,0.0005041,120]
[356546846,1742637107050,-809.31,0.0005041,120]
[356546847,1742637107059,-2000.27,0.0005041,120]
[356546848,1742637107069,-1128.13,0.0005041,120]
[356546849,1742637107078,-205.85,0.0005041,7]
[356546850,1742637107087,-2750.71,0.0005041,120]
[356546851,1742637107096,-418.04654767,0.0005041,120]
[356546852,1742637107105,-302.38460273,0.0005041,120]
[356546853,1742637107114,-972.4,0.0005041,120]
[356546854,1742637107124,-912.87,0.0005041,120]
[356546855,1742637107134,-558.47,0.0005041,120]
[356546856,1742637107143,-1367.27,0.0005041,120]
[356546857,1742637107152,-743.38,0.0005041,120]
[356546858,1742637107162,-520.84,0.0005041,120]
[356546859,1742637107171,-3375.17,0.0005041,120]
[356546860,1742637107181,-500.0,0.0005041,120]
[356546861,1742637107190,-1219.57,0.0005041,120]
[356546862,1742637107200,-500.0,0.0005041,120]
[356546863,1742637107209,-2818.72,0.0005041,120]
[356546864,1742637107219,-500.0,0.0005041,120]
[356546865,1742637107228,-825.87,0.0005041,120]
[356546866,1742637107238,-635.13,0.0005041,120]
[356546867,1742637107247,-827.5,0.0005041,120]
[356546868,1742637107257,-500.0,0.0005041,120]
[356546869,1742637107267,-695.68,0.0005041,120]
[356546870,1742637107277,-666.85,0.0005041,120]
[356546871,1742637107286,-606.96,0.0005041,120]
[356546872,1742637107296,-1356.69,0.0005041,7]
[356546873,1742637107305,-1736.83,0.0005041,120]
[356546874,1742637107315,-913.27,0.0005041,120]
[356546875,1742637107325,-599.99,0.0005041,120]
[356546876,1742637107335,-500.0,0.0005041,120]
[356546877,1742637107349,-527.15,0.0005041,120]
[356546878,1742637107359,-597.23,0.0005041,120]
[356546879,1742637107368,-501.82,0.0005041,120]
[356546880,1742637107378,-1106.0,0.0005041,120]
[356546881,1742637107388,-882.82,0.0005041,120]
[356546882,1742637107398,-1127.56,0.0005041,120]
[356546883,1742637107407,-500.0,0.0005041,120]
[356546884,1742637107416,-1089.93,0.0005041,7]
[356546885,1742637107426,-500.0,0.0005041,120]
[356546886,1742637107436,-500.0,0.0005041,120]
[356546887,1742637107446,-502.2,0.0005041,120]
[356546888,1742637107457,-1068.57,0.0005041,120]
[356546889,1742637107466,-1131.58,0.0005041,120]
[356546890,1742637107475,-529.97,0.0005041,120]
[356546891,1742637107485,-559.18,0.0005041,120]
[356546892,1742637107494,-389.13831617,0.0005041,120]
[356546893,1742637107503,-1578.59,0.0005041,120]
[356546894,1742637107513,-5060.41,0.0005041,120]
[356546895,1742637107523,-441.41912701,0.0005041,120]
[356546896,1742637107532,-500.0,0.0005041,120]
[356546897,1742637107542,-938.19,0.0005041,120]
[356546898,1742637107551,-567.38,0.0005041,120]
[356546899,1742637107560,-617.69,0.0005041,120]
[356546900,1742637107570,-1439.24,0.0005041,120]
[356546901,1742637107579,-1288.21,0.0005041,120]
[356546902,1742637107589,-3623.73,0.0005041,120]
[356546903,1742637107599,-1914.19,0.0005041,120]
[356546904,1742637107608,-1583.29,0.0005041,120]
[356546905,1742637107618,-1724.46,0.0005041,120]
[356546906,1742637107627,-2003.91,0.0005041,100]
[356546907,1742637107637,-1585.84,0.0005041,120]
[356546908,1742637107646,-500.0,0.0005041,120]
[356546909,1742637107656,-2253.09,0.0005041,120]
[356546910,1742637107665,-500.0,0.0005041,120]
[356546911,1742637107675,-500.0,0.0005041,120]
[356546912,1742637107684,-645.37,0.0005041,120]
[356546913,1742637107693,-691.36,0.0005041,120]
[356546914,1742637107703,-817.6,0.0005041,120]
[356546915,1742637107713,-523.41,0.0005041,120]
[356546916,1742637107722,-1609.26,0.0005041,120]
[356546917,1742637107731,-1857.45,0.0005041,120]
[356546918,1742637107740,-1181.24,0.0005041,120]
[356546919,1742637107750,-592.73,0.0005041,120]
[356546920,1742637107759,-1111.56,0.0005041,120]
[356546921,1742637107769,-500.0,0.0005041,120]
[356546922,1742637107778,-1095.08,0.0005041,120]
[356546923,1742637107788,-1041.52,0.0005041,120]
[356546924,1742637107798,-500.0,0.0005041,120]
[356546925,1742637107808,-624.9,0.0005041,120]
[356546926,1742637107817,-796.13,0.0005041,120]
[356546927,1742637107826,-751.81,0.0005041,120]
[356546928,1742637107835,-722.59,0.0005041,120]
[356546929,1742637107845,-554.28,0.0005041,120]
[356546930,1742637107855,-555.78,0.0005041,120]
[356546931,1742637107865,-500.0,0.0005041,120]
[356546932,1742637107875,-3273.79,0.0005041,120]
[356546933,1742637107884,-2930.96,0.0005041,120]
[356546934,1742637107893,-1052.7,0.0005041,120]
[356546935,1742637107903,-504.22,0.0005041,120]
[356546936,1742637107913,-500.0,0.0005041,120]
[356546937,1742637107922,-504.42,0.0005041,120]
[356546938,1742637107931,-1485.55,0.0005041,120]
[356546939,1742637107941,-1012.20574723,0.0005041,120]
[356546940,1742637108240,-371.81240251,0.00046849,120]
[356546941,1742637108251,-634.07759749,0.00046849,120]
[356546942,1742637108261,-68.56425277,0.0005041,120]
[356546943,1742637108271,-109.93340901,0.0005041,120]
[356546944,1742637108523,-1176.061256,0.00046475,120]
[356546945,1742637108542,-3823.938744,0.00046475,120]
[356546946,1742637108552,-1005.89,0.00047123,120]
[356546947,1742637108562,-1005.89,0.00047397,120]
[356546948,1742637108572,-500.0,0.00047671,120]
[356546949,1742637108582,-1005.89,0.00047671,120]
[356546950,1742637108591,-500.0,0.00047945,120]
[356546951,1742637108600,-1005.89,0.00047945,120]
[356546952,1742637108610,-500.0,0.00048219,120]
[356546953,1742637108619,-1005.89,0.00048219,120]
[356546954,1742637108628,-25862.71189482,0.00048377,15]
[356546955,1742637110250,-5528.9851691,0.00047845,2]
[356546956,1742637110260,-7652.45328979,0.00048377,15]
[356546957,1742637110271,-541.10012109,0.00048377,15]
[356546958,1742637110284,-6104.03841251,0.00048377,15]
[356546959,1742637110295,-7809.03247051,0.00048377,15]
[356546960,1742637110307,-987.4,0.00048377,15]
[356546961,1742637110318,-867.194902,0.00048377,15]
[356546962,1742637110330,-576.70999178,0.00048377,15]
[356546963,1742637110341,-1104.89183922,0.00048377,15]
[356546964,1742637110357,-432.00902886,0.00048377,15]
[356546965,1742637110374,-711.6719425,0.00048377,15]
[356546966,1742637110386,-651.58,0.00048377,15]
[356546967,1742637110397,-1090.64408192,0.00048377,15]
[356546968,1742637110410,-2693.46242932,0.00048377,15]
[356546969,1742637110421,-500.0,0.00048493,120]
[356546970,1742637110431,-1005.89,0.00048493,120]
[356546971,1742637110442,-500.0,0.00048767,120]
[356546972,1742637110452,-154.87838687,0.00048767,120]
[356546973,1742637110463,-851.01161313,0.00048767,120]
[356546974,1742637110474,-500.0,0.00049041,120]
[356546975,1742637110484,-276.18838687,0.00049041,120]
[356546976,1742637110496,-729.70161313,0.00049041,120]
[356546977,1742637110506,-500.0,0.00049315,120]
[356546978,1742637110516,-204.06885883,0.00049315,120]
[356546979,1742637110535,-801.82114117,0.00049315,120]
[356546980,1742637110544,-500.0,0.00049589,120]
[356546981,1742637110553,-1005.89,0.00049589,120]
[356546982,1742637110563,-500.0,0.00049863,120]
[356546983,1742637110572,-131.92829901,0.00049863,120]
[356546984,1742637110634,-873.96170099,0.00049863,120]
[356546985,1742637110645,-1001.37,0.00050136,120]
[356546986,1742637110655,-500.0,0.00050136,120]
[356546987,1742637110664,-1005.89,0.00050136,120]
[356546988,1742637110674,-547.19659099,0.0005041,120]
[356546989,1742637110683,-500.0,0.0005041,120]
[356546990,1742637110692,-517.31,0.0005041,120]
[356546991,1742637110702,-760.27,0.0005041,120]
[356546992,1742637110712,-899.53,0.0005041,120]
[356546993,1742637110721,-500.0,0.0005041,120]
[356546994,1742637110730,-500.0,0.0005041,120]
[356546995,1742637110740,-692.39,0.0005041,120]
[356546996,1742637110749,-500.0,0.0005041,120]
[356546997,1742637110759,-555.67,0.0005041,120]
[356546998,1742637110769,-1026.62,0.0005041,120]
[356546999,1742637110778,-500.0,0.0005041,120]
[356547000,1742637110788,-1504.12,0.0005041,120]
[356547001,1742637110797,-655.7,0.0005041,120]
[356547002,1742637110806,-500.0,0.0005041,120]
[356547003,1742637110816,-668.14,0.0005041,120]
[356547004,1742637110825,-529.96,0.0005041,120]
[356547005,1742637110836,-1785.62,0.0005041,120]
[356547006,1742637110846,-56672.48,0.0005041,120]
[356547007,1742637110856,-874.3,0.0005041,120]
[356547008,1742637110867,-500.0,0.0005041,120]
[356547009,1742637110878,-892.9,0.0005041,120]
[356547010,1742637110888,-507.98,0.0005041,120]
[356547011,1742637110898,-767.43,0.0005041,120]
[356547012,1742637110907,-818.49,0.0005041,120]
[356547013,1742637110917,-574.58,0.0005041,120]
[356547014,1742637110927,-622.98,0.0005041,120]
[356547015,1742637110936,-1187.99,0.0005041,120]
[356547016,1742637110946,-594.34,0.0005041,120]
[356547017,1742637110955,-500.0,0.0005041,120]
[356547018,1742637110965,-724.76,0.0005041,120]
[356547019,1742637110977,-554.79,0.0005041,120]
[356547020,1742637110988,-500.0,0.0005041,120]
[356547021,1742637110998,-864.88,0.0005041,120]
[356547022,1742637111008,-664.62,0.0005041,120]
[356547023,1742637111018,-870.55,0.0005041,120]
[356547024,1742637111028,-500.0,0.0005041,120]
[356547025,1742637111038,-3152.52,0.0005041,120]
[356547026,1742637111047,-1001.37,0.0005041,120]
[356547027,1742637111056,-500.0,0.0005041,120]
[356547028,1742637111065,-1005.89,0.0005041,120]
[356547029,1742637111075,-500.0,0.00050414,120]
[356547030,1742637111084,-940.12316459,0.000505,120]
[356547031,1742637111094,-200.0,0.000505,120]
[356547032,1742637111103,-988.181,0.00050676,120]
[356547033,1742637111113,-904.785999,0.00050684,120]
[356547034,1742637111122,-733.844647,0.00050684,120]
[356547035,1742637111132,-500.0,0.00050684,120]
[356547036,1742637111141,-950.82,0.00050684,120]
[356547037,1742637111151,-517.63,0.00050684,120]
[356547038,1742637111162,-1049.72,0.00050684,120]
[356547039,1742637111171,-653.69,0.00050684,120]
[356547040,1742637111181,-907.89,0.00050684,120]
[356547041,1742637111191,-600.62,0.00050684,120]
[356547042,1742637111201,-311.07185978,0.00050684,120]
[356547043,1742637111210,-500.0,0.00050684,120]
[356547044,1742637111220,-292.3202202,0.00050684,120]
[356547045,1742637111229,-501.22,0.00050684,120]
[356547046,1742637111238,-761.07,0.00050684,120]
[356547047,1742637111247,-956.79,0.00050684,120]
[356547048,1742637111257,-514.36897758,0.00050684,120]
[356547049,1742637111266,-963.36,0.00050684,60]
[356547050,1742637111275,-782.21,0.00050684,120]
[356547051,1742637111284,-570.72820765,0.00050684,120]
[356547052,1742637111294,-584.06,0.00050684,120]
[356547053,1742637111303,-673.59,0.00050684,120]
[356547054,1742637111313,-500.0,0.00050684,120]
[356547055,1742637111322,-502.51,0.00050684,120]
[356547056,1742637111331,-500.0,0.00050684,120]
[356547057,1742637111342,-751.46,0.00050684,120]
[356547058,1742637111353,-1642.39,0.00050684,120]
[356547059,1742637111363,-654.04,0.00050684,120]
[356547060,1742637111372,-674.52,0.00050684,120]
[356547061,1742637111381,-520.54,0.00050684,120]
[356547062,1742637111391,-500.0,0.00050684,120]
[356547063,1742637111401,-781.34,0.00050684,120]
[356547064,1742637111410,-500.0,0.00050684,120]
[356547065,1742637111419,-532.16,0.00050684,120]
[356547066,1742637111428,-500.0,0.00050684,120]
[356547067,1742637111437,-500.0,0.00050684,120]
[356547068,1742637111447,-601.78,0.00050684,120]
[356547069,1742637111456,-691.76,0.00050684,120]
[356547070,1742637111465,-802.29,0.00050684,120]
[356547071,1742637111475,-500.0,0.00050684,120]
[356547072,1742637111484,-580.53,0.00050684,120]
[356547073,1742637111493,-2210.41,0.00050684,120]
[356547074,1742637111503,-904.56,0.00050684,120]
[356547075,1742637111513,-500.0,0.00050684,120]
[356547076,1742637111522,-793.91,0.00050684,120]
[356547077,1742637111531,-706.55,0.00050684,120]
[356547078,1742637111541,-834.3,0.00050684,120]
[356547079,1742637111550,-671.78,0.00050684,120]
[356547080,1742637111559,-500.0,0.00050684,120]
[356547081,1742637111569,-1807.75,0.00050684,120]
[356547082,1742637111579,-500.0,0.00050684,120]
[356547083,1742637111588,-842.88,0.00050684,120]
[356547084,1742637111598,-500.0,0.00050684,120]
[356547085,1742637111607,-500.0,0.00050684,120]
[356547086,1742637111616,-350.0,0.00050684,120]
[356547087,1742637111626,-965.16,0.00050684,120]
[356547088,1742637111635,-591.6,0.00050684,120]
[356547089,1742637111644,-1371.05,0.00050684,120]
[356547090,1742637111653,-1325.26,0.00050684,120]
[356547091,1742637111663,-558.56,0.00050684,120]
[356547092,1742637111673,-874.61,0.00050684,120]
[356547093,1742637111682,-902.88,0.00050684,120]
[356547094,1742637111691,-509.55,0.00050684,120]
[356547095,1742637111700,-500.0,0.00050684,120]
[356547096,1742637111710,-937.33,0.00050684,120]
[356547097,1742637111719,-500.0,0.00050684,120]
[356547098,1742637111729,-1062.3,0.00050684,120]
[356547099,1742637111739,-600.78,0.00050684,120]
[356547100,1742637111748,-664.64,0.00050684,120]
[356547101,1742637111758,-668.71,0.00050684,120]
[356547102,1742637111767,-564.64,0.00050684,120]
[356547103,1742637111776,-1070.64,0.00050684,120]
[356547104,1742637111785,-979.48,0.00050684,120]
[356547105,1742637111794,-500.0,0.00050684,120]
[356547106,1742637111803,-800.83,0.00050684,120]
[356547107,1742637111813,-500.0,0.00050684,120]
[356547108,1742637111822,-698.39,0.00050684,120]
[356547109,1742637111832,-680.79,0.00050684,120]
[356547110,1742637111842,-514.68,0.00050684,120]
[356547111,1742637111851,-536.4,0.00050684,120]
[356547112,1742637111861,-400.66059785,0.00050684,120]
[356547113,1742637111872,-500.0,0.00050684,120]
[356547114,1742637111881,-494.35014767,0.00050684,120]
[356547115,1742637111890,-500.0,0.00050684,120]
[356547116,1742637111899,-661.88,0.00050684,120]
[356547117,1742637111909,-500.0,0.00050684,120]
[356547118,1742637111918,-500.0,0.00050684,120]
[356547119,1742637111927,-500.0,0.00050684,120]
[356547120,1742637111936,-730.9,0.00050684,120]
[356547121,1742637111946,-1058.49,0.00050684,120]
[356547122,1742637111955,-500.0,0.00050684,120]
[356547123,1742637111964,-1233.22,0.00050684,120]
[356547124,1742637111974,-1327.63,0.00050684,120]
[356547125,1742637111983,-520.32,0.00050684,120]
[356547126,1742637111991,-896.4,0.00050684,120]
[356547127,1742637112000,-1347.94,0.00050684,120]
[356547128,1742637112009,-597.81,0.00050684,120]
[356547129,1742637112018,-788.73,0.00050684,120]
[356547130,1742637112027,-500.0,0.00050684,120]
[356547131,1742637112036,-500.0,0.00050684,120]
[356547132,1742637112045,-2023.49,0.00050684,120]
[356547133,1742637112054,-625.69,0.00050684,120]
[356547134,1742637112063,-1415.42,0.00050684,120]
[356547135,1742637112072,-556.5,0.00050684,120]
[356547136,1742637112081,-839.81,0.00050684,120]
[356547137,1742637112089,-813.54,0.00050684,120]
[356547138,1742637112099,-570.18,0.00050684,120]
[356547139,1742637112107,-500.0,0.00050684,120]
[356547140,1742637112117,-621.41,0.00050684,120]
[356547141,1742637112126,-300.0,0.00050684,120]
[356547142,1742637112135,-713.81,0.00050684,120]
[356547143,1742637112145,-500.0,0.00050684,120]
[356547144,1742637112154,-500.0,0.00050684,120]
[356547145,1742637112163,-1159.44,0.00050684,10]
[356547146,1742637112172,-639.03,0.00050684,120]
[356547147,1742637112181,-500.0,0.00050684,120]
[356547148,1742637112190,-521.66,0.00050684,120]
[356547149,1742637112201,-1837.38,0.00050684,120]
[356547150,1742637112210,-500.0,0.00050684,120]
[356547151,1742637112220,-500.0,0.00050684,120]
[356547152,1742637112229,-500.0,0.00050684,120]
[356547153,1742637112238,-500.0,0.00050684,120]
[356547154,1742637112247,-872.68,0.00050684,120]
[356547155,1742637112256,-500.0,0.00050684,120]
[356547156,1742637112265,-815.59,0.00050684,120]
[356547157,1742637112274,-500.0,0.00050684,120]
[356547158,1742637112284,-564.59,0.00050684,120]
[356547159,1742637112293,-500.0,0.00050684,120]
[356547160,1742637112303,-629.6,0.00050684,120]
[356547161,1742637112312,-500.0,0.00050684,120]
[356547162,1742637112321,-1219.87,0.00050684,120]
[356547163,1742637112330,-511.1,0.00050684,120]
[356547164,1742637112340,-342.51776252,0.00050684,120]
[356547165,1742637112354,-500.0,0.00050684,120]
[356547166,1742637112364,-973.06,0.00050684,120]